fUSD/lending_fUSD_20260225
["ID","MTS","AMOUNT","RATE_DAILY","PERIOD"]
[406648869,1772031047804,-51664.32483519,0.00018,2]
[406648870,1772031047822,-548.6655232,0.00018,2]
[406648871,1772031047834,-585.16885174,0.00018,2]
[406648872,1772031047895,-690.4,0.00018,2]
[406648873,1772031047907,-722.53668167,0.00018,2]
[406648874,1772031048092,-1341037.66004762,0.00018,2]
[406648875,1772031048104,-6977.9,0.00018,2]
[406648876,1772031048210,-1133.80085325,0.00018,2]
[406648877,1772031048222,-756.45735762,0.00018,2]
[406648878,1772031048233,-34917.96113812,0.00018,2]
[406648879,1772031048292,-6267.97041248,0.00018,2]
[406648880,1772031048333,-698.57099987,0.00018,2]
[406648881,1772031048344,-671.04808258,0.00018,2]
[406648882,1772031048356,-725.91928473,0.00018,2]
[406648883,1772031048368,-695.55,0.00018,2]
[406648890,1772031267290,664.28,4.705e-05,2]
[406648891,1772031267511,664.28,4.87e-05,2]
[406648892,1772031267731,664.28,5.035e-05,2]
[406648893,1772031267961,664.28,5.2e-05,2]
[406648894,1772031268249,664.28,5.365e-05,2]
[406648895,1772031268365,664.28,5.53e-05,2]
[406648896,1772031268560,664.28,5.695e-05,2]
[406648897,1772031268796,350.05,5.861e-05,2]
[406648898,1772031268817,314.23,5.861e-05,2]
[406648899,1772031269020,664.28,6.026e-05,2]
[406648900,1772031269223,664.28,6.191e-05,2]
[406648901,1772031269457,664.28,6.356e-05,2]
[406648902,1772031269689,664.28,6.521e-05,2]
[406648903,1772031395360,177.0,0.0001789,120]
[406648904,1772031430180,671.73246173,0.0001,3]
[406648905,1772031476418,150.0,0.000151,120]
[406648906,1772031476998,404.98,0.000159,120]
[406648907,1772031530627,151.58,6.273e-05,2]
[406648911,1772031666134,150.0,0.000151,120]
[406648912,1772031666734,238.48,0.000159,120]
[406648923,1772031730035,5013.31097079,6.686e-05,5]
[406648929,1772031854094,150.0,0.000145,120]
[406648930,1772031855289,256.47,0.000154,120]
[406648931,1772031939026,-208.0,6.686e-05,2]
[406648965,1772032205677,208.0,6.686e-05,2]
[406648976,1772032231555,-250.0,6.686e-05,2]
[406648977,1772032231565,-2387.94287801,6.686e-05,2]
[406648978,1772032231578,-489.02572895,6.686e-05,2]
[406648979,1772032231590,-2123.03139304,6.686e-05,2]
[406648980,1772032231600,-664.28,6.686e-05,2]
[406648981,1772032231610,-250.0,6.767e-05,2]
[406648982,1772032231620,-664.28,6.851e-05,2]
[406648983,1772032231629,-1200.0,6.872e-05,2]
[406648984,1772032231639,-500.0,6.873e-05,2]
[406648985,1772032231648,-500.0,6.873e-05,2]
[406648986,1772032231657,-500.0,6.873e-05,2]
[406648987,1772032231667,-500.0,6.873e-05,2]
[406648988,1772032231680,-500.0,6.873e-05,2]
[406648989,1772032231690,-500.0,6.873e-05,2]
[406648990,1772032231700,-300.0,7.015e-05,2]
[406648991,1772032231710,-300.0,7.015e-05,2]
[406648992,1772032231720,-664.28,7.016e-05,2]
[406648993,1772032231730,-664.28,7.181e-05,2]
[406648994,1772032231740,-300.0,7.345e-05,2]
[406648995,1772032231749,-664.28,7.346e-05,2]
[406648996,1772032231759,-150.99,7.346e-05,2]
[406648997,1772032231768,-299.99,7.346e-05,2]
[406648998,1772032231778,-9999.99,7.346e-05,2]
[406648999,1772032231788,-250.0,7.355e-05,2]
[406649000,1772032231802,-5000.0,7.355e-05,2]
[406649001,1772032231812,-150.0,7.42e-05,2]
[406649002,1772032231822,-222.0,7.421e-05,2]
[406649003,1772032231832,-211.0,7.421e-05,2]
[406649004,1772032231846,-166.0,7.421e-05,2]
[406649005,1772032231855,-177.0,7.421e-05,2]
[406649006,1772032231865,-188.0,7.421e-05,2]
[406649007,1772032231874,-199.0,7.421e-05,2]
[406649008,1772032231884,-339.81205966,7.421e-05,2]
[406649009,1772032231895,-308.81499859,7.421e-05,2]
[406649010,1772032231904,-512.75173509,7.421e-05,2]
[406649011,1772032231914,-500.0,7.421e-05,2]
[406649012,1772032231923,-1000.0,7.421e-05,2]
[406649013,1772032231932,-155.0,7.511e-05,2]
[406649014,1772032231942,-664.28,7.511e-05,2]
[406649016,1772032231951,-1680.0,7.559e-05,2]
[406649019,1772032231961,-664.28,7.677e-05,2]
[406649022,1772032231970,-420.0,7.717e-05,2]
[406649025,1772032231979,-70546.13127172,7.741e-05,2]
[406649031,1772032232020,-9042.15257602,7.741e-05,2]
[406649032,1772032232033,-6694.46050838,7.741e-05,2]
[406649033,1772032232047,-13343.53581051,7.741e-05,2]
[406649034,1772032232062,-353.5,7.741e-05,2]
[406649035,1772032232074,-18504.81769867,7.741e-05,2]
[406649037,1772032237753,-950.98,7.741e-05,2]
[406649038,1772032237766,-669.47963306,7.741e-05,2]
[406649039,1772032237777,-4671.0,7.741e-05,2]
[406649040,1772032237789,-997.91895596,7.741e-05,2]
[406649041,1772032237804,-33383.99891269,7.741e-05,2]
[406649042,1772032238043,-548.27615164,7.741e-05,2]
[406649058,1772032239923,-1023.24592403,7.741e-05,2]
[406649059,1772032239935,-410.5488391,7.741e-05,2]
[406649070,1772032245736,-1127.07574042,7.741e-05,2]
[406649073,1772032245859,-39980.00000006,7.741e-05,2]
[406649074,1772032245871,-674.22499996,7.741e-05,2]
[406649075,1772032245883,-989.69999992,7.741e-05,2]
[406649078,1772032246105,-12996.75000003,7.741e-05,2]
[406649079,1772032246116,-13429.8,7.741e-05,2]
[406649080,1772032246128,-1769662.40297783,7.741e-05,2]
[406649081,1772032246137,-2377.02,7.841e-05,2]
[406649082,1772032246148,-2879.34,7.841e-05,2]
[406649083,1772032246158,-25314.65,7.841e-05,2]
[406649084,1772032246167,-664.28,7.842e-05,2]
[406649085,1772032246176,-1500.0,7.968e-05,2]
[406649086,1772032246186,-2351.0,8.315e-05,2]
[406649087,1772032246195,-587.0,8.488e-05,2]
[406649088,1772032246205,-250.0,8.834e-05,2]
[406649089,1772032246214,-3292.0,9.146e-05,2]
[406649090,1772032246223,-686.46154437,0.0001,2]
[406649092,1772032246233,-4609.0,0.00010061,2]
[406649094,1772032246243,-1269.28396296,0.00010451,2]
[406649096,1772032246252,-1544.4,0.00010475,2]
[406649098,1772032246262,-200.0,0.000107,3]
[406649099,1772032246271,-400.0,0.000108,3]
[406649102,1772032246281,-600.0,0.000109,3]
[406649104,1772032246291,-1852.10638154,0.00010903,2]
[406649105,1772032246302,-150.0,0.00010959,2]
[406649107,1772032246312,-1238.55291399,0.0001096,3]
[406649109,1772032246321,-6453.0,0.00011067,2]
[406649111,1772032246331,-3256.95,0.00011233,2]
[406649113,1772032246340,-4132.8248,0.00011258,2]
[406649115,1772032246350,-89527.5151,0.00011258,2]
[406649118,1772032246359,-2500.0,0.00011258,2]
[406649120,1772032246370,-6743.6302,0.00011258,2]
[406649122,1772032246380,-447.63445272,0.00011333,2]
[406649124,1772032246389,-7578.39454732,0.00011348,2]
[406649126,1772032246400,-966.6554,0.00011358,2]
[406649128,1772032246409,-1219.12,0.00011433,2]
[406649130,1772032246419,-920.0,0.00011433,2]
[406649132,1772032246428,-5982.0,0.00011433,2]
[406649134,1772032246437,-413.0,0.00011433,2]
[406649136,1772032246446,-5405.0,0.00011433,2]
[406649138,1772032246455,-150.0,0.00011458,2]
[406649140,1772032246464,-150.0,0.00011458,2]
[406649142,1772032246473,-150.0,0.00011458,2]
[406649145,1772032246483,-150.0,0.00011458,2]
[406649147,1772032246492,-150.0,0.00011458,2]
[406649149,1772032246507,-150.0,0.00011458,2]
[406649151,1772032246520,-150.0,0.00011458,2]
[406649153,1772032246530,-150.0,0.00011458,2]
[406649155,1772032246539,-150.0,0.00011458,2]
[406649157,1772032246548,-150.0,0.00011458,2]
[406649159,1772032246561,-1340.0,0.00011458,2]
[406649161,1772032246571,-618.0,0.00011458,2]
[406649163,1772032246580,-3497.0,0.00011458,2]
[406649165,1772032246590,-1277.0,0.00011458,2]
[406649167,1772032246599,-9804.0,0.000115,2]
[406649169,1772032246608,-313.50581225,0.000118,2]
[406649171,1772032246617,-5531.0,0.000119,3]
[406649173,1772032246627,-11826.76,0.00012055,2]
[406649175,1772032246637,-447.63445271,0.00012063,2]
[406649177,1772032246646,-9035.0,0.00012173,2]
[406649179,1772032246656,-5531.0,0.000123,5]
[406649181,1772032246665,-447.63445271,0.00012792,2]
[406649198,1772032246675,-173.91437885,0.00013199,2]
[406649202,1772032246849,-2397.0,0.00013391,2]
[406649204,1772032246858,-3240.0,0.00013425,2]
[406649206,1772032246868,-447.63445271,0.00013522,2]
[406649209,1772032246877,-500.0,0.00013698,2]
[406649211,1772032246887,-500.0,0.00013698,2]
[406649215,1772032246896,-442.42094836,0.00013698,2]
[406649218,1772032246906,-500.0,0.00013698,2]
[406649220,1772032246915,-331.74942186,0.00013698,2]
[406649221,1772032246925,-200.0,0.00013699,2]
[406649223,1772032246935,-500.0,0.00013699,2]
[406649224,1772032246944,-500.0,0.00013699,2]
[406649225,1772032246953,-500.0,0.00013699,2]
[406649226,1772032246962,-500.0,0.00013699,2]
[406649227,1772032246971,-500.0,0.00013699,2]
[406649228,1772032246980,-500.0,0.00013699,2]
[406649229,1772032246989,-500.0,0.00013699,2]
[406649230,1772032246998,-161.14332278,0.00013699,2]
[406649231,1772032247007,-500.0,0.00013699,2]
[406649232,1772032247016,-500.0,0.00013699,2]
[406649233,1772032247025,-500.0,0.00013699,2]
[406649234,1772032247035,-163.76963508,0.00013699,2]
[406649235,1772032247044,-500.0,0.00013699,2]
[406649236,1772032247055,-500.0,0.00013699,2]
[406649237,1772032247064,-500.0,0.00013699,2]
[406649238,1772032247073,-500.0,0.00013699,2]
[406649239,1772032247082,-500.0,0.00013699,2]
[406649240,1772032247092,-500.0,0.00013699,2]
[406649241,1772032247101,-500.0,0.00013699,2]
[406649242,1772032247110,-259.57675211,0.00013699,2]
[406649243,1772032247120,-500.0,0.00013699,2]
[406649244,1772032247130,-500.0,0.00013699,2]
[406649245,1772032247139,-500.0,0.00013699,2]
[406649246,1772032247147,-500.0,0.00013699,2]
[406649247,1772032247157,-500.0,0.00013699,2]
[406649248,1772032247166,-500.0,0.00013699,2]
[406649249,1772032247175,-500.0,0.00013699,2]
[406649250,1772032247183,-500.0,0.00013699,2]
[406649252,1772032247193,-500.0,0.00013699,2]
[406649254,1772032247202,-500.0,0.00013699,2]
[406649256,1772032247211,-500.0,0.00013699,2]
[406649257,1772032247220,-500.0,0.00013699,2]
[406649258,1772032247230,-8082.0,0.00014129,2]
[406649259,1772032247239,-1008.10480934,0.00014247,2]
[406649260,1772032247249,-1000.0,0.00014247,2]
[406649261,1772032247258,-1000.0,0.00014247,2]
[406649262,1772032247267,-1000.0,0.00014247,2]
[406649263,1772032247277,-1000.0,0.00014247,2]
[406649264,1772032247286,-1000.0,0.00014247,2]
[406649265,1772032247295,-1000.0,0.00014247,2]
[406649266,1772032247307,-604.2577825,0.00014247,2]
[406649267,1772032247317,-1000.0,0.00014247,2]
[406649268,1772032247326,-800.44121468,0.00014247,2]
[406649270,1772032247336,-776.00043833,0.00014247,2]
[406649272,1772032247345,-1000.0,0.00014247,2]
[406649274,1772032247354,-1000.0,0.00014247,2]
[406649275,1772032247363,-1000.0,0.00014247,2]
[406649277,1772032247373,-1000.0,0.00014247,2]
[406649279,1772032247382,-1000.0,0.00014247,2]
[406649281,1772032247391,-374.88076834,0.00014247,2]
[406649283,1772032247401,-503.12005961,0.00014247,2]
[406649285,1772032247410,-1000.0,0.00014247,2]
[406649287,1772032247420,-175.96468334,0.00014247,2]
[406649289,1772032247430,-1000.0,0.00014247,2]
[406649291,1772032247439,-1000.0,0.00014247,2]
[406649293,1772032247448,-1000.0,0.00014247,2]
[406649295,1772032247458,-1000.0,0.00014247,2]
[406649297,1772032247468,-1000.0,0.00014247,2]
[406649299,1772032247477,-1004.88674942,0.00014247,2]
[406649301,1772032247487,-502.589699,0.00014247,2]
[406649303,1772032247497,-500.72491405,0.00014247,2]
[406649306,1772032247513,-1000.0,0.00014247,2]
[406649308,1772032247523,-447.63445271,0.00014252,2]
[406649310,1772032247532,-500.0,0.00014357,2]
[406649312,1772032247541,-500.0,0.00014357,2]
[406649314,1772032247555,-500.0,0.00014357,2]
[406649316,1772032247564,-500.0,0.00014357,2]
[406649318,1772032247573,-500.0,0.00014357,2]
[406649319,1772032247584,-500.0,0.00014357,2]
[406649321,1772032247593,-500.0,0.00014357,2]
[406649323,1772032247603,-500.0,0.00014357,2]
[406649325,1772032247612,-1210.0,0.00014433,2]
[406649327,1772032247622,-920.0,0.00014433,2]
[406649329,1772032247631,-5982.0,0.00014433,2]
[406649331,1772032247640,-413.0,0.00014433,2]
[406649333,1772032247649,-5405.0,0.00014433,2]
[406649335,1772032247658,-150.0,0.00014458,2]
[406649337,1772032247668,-150.0,0.00014458,2]
[406649339,1772032247677,-150.0,0.00014458,2]
[406649341,1772032247686,-150.0,0.00014458,2]
[406649343,1772032247695,-150.0,0.00014458,2]
[406649345,1772032247705,-150.0,0.00014458,2]
[406649347,1772032247714,-1340.0,0.00014458,2]
[406649349,1772032247724,-618.0,0.00014458,2]
[406649351,1772032247733,-3497.0,0.00014458,2]
[406649353,1772032247743,-1277.0,0.00014458,2]
[406649354,1772032247752,-1500.0,0.00014795,2]
[406649357,1772032247762,-1511.45189164,0.00014795,2]
[406649358,1772032247771,-1000.0,0.00014795,2]
[406649360,1772032247780,-1500.0,0.00014795,2]
[406649362,1772032247789,-1288.76951139,0.00014795,2]
[406649364,1772032247799,-509.93232969,0.00014795,2]
[406649366,1772032247813,-1500.0,0.00014795,2]
[406649367,1772032247823,-1500.0,0.00014795,2]
[406649369,1772032247832,-1500.0,0.00014795,2]
[406649371,1772032247843,-1500.0,0.00014795,2]
[406649373,1772032247852,-1500.0,0.00014795,2]
[406649375,1772032247861,-1500.0,0.00014795,2]
[406649377,1772032247870,-1091.6833327,0.00014795,2]
[406649379,1772032247879,-1500.0,0.00014795,2]
[406649381,1772032247889,-1006.69135807,0.00014795,2]
[406649383,1772032247898,-1500.0,0.00014795,2]
[406649385,1772032247907,-1500.0,0.00014795,2]
[406649387,1772032247916,-1500.0,0.00014795,2]
[406649388,1772032247926,-1500.0,0.00014795,2]
[406649390,1772032247936,-447.63445271,0.00014981,2]
[406649392,1772032247946,-250.0,0.00015,2]
[406649394,1772032247955,-505.0,0.00015,2]
[406649397,1772032247969,-2000.0,0.00015342,2]
[406649399,1772032247978,-2000.0,0.00015342,2]
[406649401,1772032247987,-1703.52805437,0.00015342,2]
[406649403,1772032247997,-741.17434169,0.00015342,2]
[406649405,1772032248007,-2000.0,0.00015342,2]
[406649407,1772032248016,-1597.09510233,0.00015342,2]
[406649409,1772032248027,-2000.0,0.00015342,2]
[406649410,1772032248036,-2000.0,0.00015342,2]
[406649412,1772032248045,-1538.67533251,0.00015342,2]
[406649415,1772032248057,-2000.0,0.00015342,2]
[406649416,1772032248067,-2000.0,0.00015342,2]
[406649419,1772032248076,-2000.0,0.00015342,2]
[406649420,1772032248086,-2000.0,0.00015342,2]
[406649423,1772032248098,-447.63445271,0.00015711,2]
[406649425,1772032248107,-708.62062,0.0001589,2]
[406649427,1772032248117,-2187.89476674,0.0001589,2]
[406649429,1772032248126,-2500.0,0.0001589,2]
[406649431,1772032248135,-505.60534384,0.0001589,2]
[406649432,1772032248144,-614.542994,0.0001589,2]
[406649434,1772032248153,-2019.14759919,0.0001589,2]
[406649436,1772032248163,-700.42773043,0.0001589,2]
[406649438,1772032248172,-2500.0,0.0001589,2]
[406649440,1772032248182,-2500.0,0.0001589,2]
[406649442,1772032248191,-500.0,0.00016356,2]
[406649444,1772032248200,-500.0,0.00016356,2]
[406649446,1772032248209,-800.0,0.00016356,2]
[406649448,1772032248219,-645.8,0.00016438,2]
[406649450,1772032248230,-1273.75528776,0.00016438,2]
[406649452,1772032248240,-3000.0,0.00016438,2]
[406649454,1772032248249,-1041.36883601,0.00016438,2]
[406649456,1772032248260,-447.63445271,0.00016441,2]
[406649458,1772032248269,-645.8,0.00016712,2]
[406649460,1772032248279,-166.47,0.00016712,2]
[406649462,1772032248288,-505.0,0.00016912,3]
[406649464,1772032248297,-151.0,0.00016926,2]
[406649466,1772032248308,-156.587,0.00016926,2]
[406649468,1772032248317,-162.380719,0.00016926,2]
[406649470,1772032248326,-160.11759511,0.00016926,2]
[406649472,1772032248336,-277.35679052,0.00016926,2]
[406649474,1772032248345,-645.8,0.00016986,2]
[406649476,1772032248354,-3500.0,0.00016986,2]
[406649478,1772032248364,-300.0,0.00017,2]
[406649480,1772032248373,-11560.47739,0.000171,2]
[406649482,1772032248382,-447.63445271,0.0001717,2]
[406649484,1772032248391,-900.0,0.000172,6]
[406649486,1772032248400,-700.0,0.00017255,2]
[406649488,1772032248412,-645.8,0.0001726,2]
[406649490,1772032248421,-387.0,0.00017288,2]
[406649492,1772032248431,-1100.0,0.000173,6]
[406649494,1772032248440,-387.0,0.00017316,2]
[406649496,1772032248449,-387.0,0.00017351,2]
[406649498,1772032248458,-387.0,0.00017356,2]
[406649500,1772032248467,-200.0,0.000174,6]
[406649501,1772032248477,-1210.0,0.00017433,2]
[406649503,1772032248487,-920.0,0.00017433,2]
[406649505,1772032248496,-5982.0,0.00017433,2]
[406649507,1772032248507,-413.0,0.00017433,2]
[406649509,1772032248520,-5405.0,0.00017433,2]
[406649511,1772032248530,-150.0,0.00017458,2]
[406649513,1772032248540,-150.0,0.00017458,2]
[406649515,1772032248551,-150.0,0.00017458,2]
[406649517,1772032248562,-150.0,0.00017458,2]
[406649519,1772032248571,-1340.0,0.00017458,2]
[406649521,1772032248581,-618.0,0.00017458,2]
[406649523,1772032248592,-3497.0,0.00017458,2]
[406649525,1772032248602,-1277.0,0.00017458,2]
[406649527,1772032248611,-387.0,0.00017461,2]
[406649529,1772032248620,-387.0,0.00017466,2]
[406649531,1772032248631,-321.22673374,0.00017474,2]
[406649533,1772032248640,-300.0,0.00017488,5]
[406649535,1772032248650,-200.0,0.000175,6]
[406649537,1772032248659,-387.0,0.00017508,2]
[406649539,1772032248669,-645.8,0.00017534,2]
[406649541,1772032248678,-4000.0,0.00017534,2]
[406649543,1772032248687,-387.0,0.00017566,2]
[406649545,1772032248697,-387.0,0.00017582,2]
[406649546,1772032248706,-200.0,0.000176,6]
[406649548,1772032248715,-500.0,0.00017639,2]
[406649551,1772032248727,-1035.09887345,0.0001764,2]
[406649553,1772032248738,-1127.07574042,0.0001764,2]
[406649554,1772032248747,-688.05052413,0.0001764,2]
[406649556,1772032248756,-165.024,0.0001764,2]
[406649558,1772032248766,-387.0,0.00017643,2]
[406649560,1772032248775,-387.0,0.00017654,2]
[406649562,1772032248785,-150.0,0.00017698,2]
[406649564,1772032248795,-150.0,0.00017698,2]
[406649566,1772032248806,-993.0,0.00017698,2]
[406649568,1772032248815,-200.0,0.000177,6]
[406649570,1772032248824,-1403.682,0.00017726,2]
[406649572,1772032248833,-800.0,0.00017726,7]
[406649574,1772032248843,-150.0,0.00017753,2]
[406649576,1772032248853,-993.0,0.00017753,2]
[406649578,1772032248862,-387.0,0.00017771,2]
[406649580,1772032248871,-600.0,0.000178,6]
[406649582,1772032248880,-880.0,0.00017804,2]
[406649584,1772032248890,-150.0,0.00017808,2]
[406649585,1772032248899,-993.0,0.00017808,2]
[406649587,1772032248909,-645.8,0.00017808,2]
[406649589,1772032248918,-500.0,0.00017808,2]
[406649591,1772032248927,-1134.45554,0.0001782,2]
[406649593,1772032248936,-1134.45555,0.0001782,2]
[406649595,1772032248947,-387.0,0.00017857,2]
[406649597,1772032248956,-150.0,0.00017862,2]
[406649599,1772032248965,-993.0,0.00017862,2]
[406649601,1772032248975,-500.0,0.00017863,2]
[406649603,1772032248984,-500.0,0.00017899,2]
[406649605,1772032248993,-500.0,0.00017899,2]
[406649607,1772032249006,-500.0,0.00017899,2]
[406649609,1772032249017,-165.69,0.000179,2]
[406649611,1772032249028,-32879.9337,0.000179,2]
[406649613,1772032249037,-1000.0,0.000179,2]
[406649615,1772032249047,-668789.5032,0.000179,2]
[406649617,1772032249058,-10000.0,0.000179,2]
[406649619,1772032249067,-447.63445271,0.000179,2]
[406649621,1772032249076,-387.0,0.00017915,2]
[406649623,1772032249085,-150.0,0.00017917,2]
[406649625,1772032249094,-993.0,0.00017917,2]
[406649626,1772032249105,-500.0,0.00017918,2]
[406649628,1772032249114,-387.0,0.00017932,2]
[406649630,1772032249123,-250.0,0.00017972,2]
[406649632,1772032249133,-993.0,0.00017972,2]
[406649634,1772032249144,-500.0,0.00017972,2]
[406649636,1772032249154,-500.0,0.00017998,5]
[406649637,1772032249163,-500.0,0.00017998,5]
[406649638,1772032249172,-500.0,0.00017998,5]
[406649639,1772032249182,-500.0,0.00017998,5]
[406649640,1772032249192,-500.0,0.00017998,5]
[406649641,1772032249202,-500.0,0.00017998,5]
[406649642,1772032249212,-500.0,0.00017998,5]
[406649643,1772032249222,-500.0,0.00017998,5]
[406649644,1772032249232,-500.0,0.00017998,5]
[406649645,1772032249242,-500.0,0.00017998,5]
[406649646,1772032249366,-500.0,0.00017998,5]
[406649647,1772032249376,-500.0,0.00017998,5]
[406649648,1772032249386,-500.0,0.00017998,5]
[406649649,1772032249395,-500.0,0.00017998,5]
[406649650,1772032249405,-500.0,0.00017998,5]
[406649651,1772032249415,-485.2122256,0.00017998,5]
[406649652,1772032249424,-500.0,0.00017998,5]
[406649653,1772032249435,-500.0,0.00017998,5]
[406649654,1772032249445,-151.0,0.00017998,5]
[406649655,1772032249455,-500.0,0.00017998,5]
[406649656,1772032249465,-151.0,0.00017998,5]
[406649657,1772032249475,-500.0,0.00017998,5]
[406649658,1772032249484,-500.0,0.00017998,5]
[406649659,1772032249494,-578.20924308,0.00017998,5]
[406649660,1772032249505,-500.0,0.00017998,5]
[406649661,1772032249517,-250.0,0.00017998,5]
[406649662,1772032249527,-500.0,0.00017998,5]
[406649663,1772032249537,-500.0,0.00017998,5]
[406649664,1772032249547,-250.0,0.00017998,5]
[406649665,1772032249559,-500.0,0.00017998,5]
[406649666,1772032249572,-693.3919763,0.00017998,5]
[406649667,1772032249582,-250.0,0.00017998,5]
[406649668,1772032249594,-500.0,0.00017998,5]
[406649669,1772032249604,-719.04747942,0.00017998,5]
[406649670,1772032249614,-250.0,0.00017998,5]
[406649671,1772032249623,-500.0,0.00017998,5]
[406649672,1772032249633,-745.65223616,0.00017998,5]
[406649673,1772032249643,-500.0,0.00017998,5]
[406649674,1772032249653,-250.0,0.00017998,5]
[406649675,1772032249663,-773.2413689,0.00017998,5]
[406649676,1772032249673,-500.0,0.00017998,5]
[406649677,1772032249682,-250.0,0.00017998,5]
[406649678,1772032249691,-801.85129955,0.00017998,5]
[406649679,1772032249700,-500.0,0.00017998,5]
[406649680,1772032249710,-250.0,0.00017998,5]
[406649681,1772032249721,-831.51979763,0.00017998,5]
[406649682,1772032249730,-500.0,0.00017998,5]
[406649683,1772032249740,-250.0,0.00017998,5]
[406649684,1772032249750,-862.28603014,0.00017998,5]
[406649685,1772032249760,-250.0,0.00017998,5]
[406649686,1772032249769,-894.19061326,0.00017998,5]
[406649687,1772032249779,-250.0,0.00017998,5]
[406649688,1772032249788,-927.27566595,0.00017998,5]
[406649689,1772032249798,-250.0,0.00017998,5]
[406649690,1772032249808,-961.58486559,0.00017998,5]
[406649691,1772032249817,-997.16350561,0.00017998,5]
[406649692,1772032249827,-250.0,0.00017998,5]
[406649693,1772032249837,-250.0,0.00017998,5]
[406649694,1772032249847,-250.0,0.00017998,5]
[406649695,1772032249857,-250.0,0.00017998,5]
[406649696,1772032249868,-250.0,0.00017998,5]
[406649697,1772032249878,-250.0,0.00017998,5]
[406649698,1772032249888,-250.0,0.00017998,5]
[406649699,1772032249898,-250.0,0.00017998,5]
[406649700,1772032249908,-250.0,0.00017998,5]
[406649701,1772032249920,-250.0,0.00017998,5]
[406649702,1772032249932,-250.0,0.00017998,5]
[406649703,1772032249942,-151.0,0.00017998,5]
[406649704,1772032249957,-151.0,0.00017998,5]
[406649705,1772032249967,-151.0,0.00017998,5]
[406649706,1772032249976,-151.0,0.00017998,5]
[406649707,1772032249987,-151.0,0.00017998,5]
[406649708,1772032249996,-151.0,0.00017998,5]
[406649709,1772032250006,-151.0,0.00017998,5]
[406649710,1772032250015,-151.0,0.00017998,5]
[406649711,1772032250025,-151.0,0.00017998,5]
[406649712,1772032250035,-151.0,0.00017998,5]
[406649713,1772032250045,-151.0,0.00017998,5]
[406649714,1772032250055,-269.917619,0.00017998,5]
[406649715,1772032250066,-300.0,0.00017999,2]
[406649716,1772032250075,-500.0,0.00017999,2]
[406649717,1772032250085,-500.0,0.00017999,2]
[406649718,1772032250094,-500.0,0.00017999,2]
[406649719,1772032250104,-500.0,0.00017999,2]
[406649720,1772032250114,-500.0,0.00017999,2]
[406649721,1772032250124,-500.0,0.00017999,2]
[406649722,1772032250134,-500.0,0.00017999,2]
[406649723,1772032250144,-344.14540526,0.00017999,2]
[406649724,1772032250154,-300.0,0.00017999,2]
[406649725,1772032250164,-666.0,0.00017999,2]
[406649726,1772032250174,-300.0,0.00017999,2]
[406649727,1772032250184,-503.37240791,0.00017999,2]
[406649728,1772032250194,-300.0,0.00017999,2]
[406649729,1772032250203,-666.0,0.00017999,2]
[406649730,1772032250213,-300.0,0.00017999,2]
[406649731,1772032250222,-666.0,0.00017999,2]
[406649732,1772032250232,-150.0,0.00017999,2]
[406649733,1772032250242,-150.0,0.00017999,2]
[406649734,1772032250252,-150.0,0.00017999,2]
[406649735,1772032250262,-150.0,0.00017999,2]
[406649736,1772032250271,-150.0,0.00017999,2]
[406649737,1772032250281,-150.0,0.00017999,2]